Workbook

Sheet Changelog
A1: No. | B1: Sheet | C1: Cell | D1: Changes
A2: 1 | B2: Inputs | C2: C19:G19 | D2: Updated nominal building block revenue from PTRM
A3: 2 | B3: Inputs | C3: C24:G24 | D3: Revised GPG demand
A4: 3 | B4: Inputs | C4: C27:G27 | D4: Revised westbound demand
A5: 4 | B5: Inputs | C5: C28:G28 | D5: Removed competitve westbound demand
A6: 5 | B6: Inputs | C6: C33:G33 | D6: Removed westbound set prices
A7: 6 | B7: Inputs | C7: C39 | D7: Updated forecast inflation
A8: 7 | B8: Inputs | C8: C42:G43 | D8: Expanded WACC section to allow for annual changes in the WACC and formed an index
A9: 8 | B9: Inputs | C9: C52:G52 | D9: Updated real smoothed revenue from PTRM
A10: 9 | B10: Calculations | C10: C21:G21 C44:G44 C69:G69 | D10: Updated X factors
A11: 10 | B11: Calculations | C11: I16, I19, I27, I52, I57, I60, I64, I75, I76 | D11: Updated formula to take into account annual changes in the WACC
A13: AER amendments are highligted in green

Sheet Inputs
A11: Roma Brisbane Pipeline
A12: Reference Tariff Model
A14: Item | B14: Dollars | C14: FY2023 | D14: FY2024 | E14: FY2025 | F14: FY2026 | G14: FY2027
A17: Building Block Revenue
A19: Building Block Revenue from PTRM | B19: Forecast Nom | C19: 40.03600246 | D19: 41.6200699 | E19: 43.9774829 | F19: 45.59722596 | G19: 42.52228291
A21: Demand
A23: Eastbound C&I | B23: TJ MDQ/Day | C23: Confidential
A24: GPG | B24: TJ MDQ/Day | C24: 17.92750128 | D24: 17.81650128 | E24: 17.70150128 | F24: 17.71250128 | G24: 17.82050128
A25: Prudent Discount | B25: TJ MDQ/Day | C25: Confidential
A26: Prudent Discount Volumes | B26: GJ
A27: Westbound | B27: TJ MDQ/Day | C27: 114.3229167 | D27: 114.3229167 | E27: 114.3229167 | F27: 114.3229167 | G27: 114.3229167
A28: Competitive Westbound | B28: TJ MDQ/Day
A29: Total Westbound | B29: TJ MDQ/Day | C29: =SUM(C27:C28) -> 114.3229167 | D29: =SUM(D27:D28) -> 114.3229167 | E29: 114.3229167 | F29: 114.3229167 | G29: 114.3229167
A31: Set Prices
A33: Westbound | B33: $/GJ MDQ/Day
A34: Prudent Discount | B34: $/GJ MDQ/Day | C34: Confidential
A35: Prudent Discount | B35: $/GJ
A37: Other inputs | C37: FY2022
A39: CPI | C39: 0.02249847188
A40: $FY22 index | C40: =1*(1+C39) -> 1.022498472 | D40: =C40*(1+FY22Inf) -> 1.045503125 | E40: =D40*(1+FY22Inf) -> 1.069025348 | F40: =E40*(1+FY22Inf) -> 1.093076784 | G40: =F40*(1+FY22Inf) -> 1.117669342
A42: WACC | B42: nominal vanilla | C42: 0.04331650335 | D42: 0.04202786956 | E42: 0.04073923577 | F42: 0.03945060198 | G42: 0.03816196819
A43: index | C43: =1*(1+C42) -> 1.043316503 | D43: =C43*(1+D42) -> 1.087164873 | E43: =D43*(1+E42) -> 1.131455139 | F43: 1.176091726 | G43: 1.220973701
A44: Days in Year | B44: days | C44: 365 | D44: 366 | E44: 365 | F44: 365 | G44: 365
A46: Terajoule | B46: GJ | C46: 1000 | D46: 1000 | E46: 1000 | F46: 1000 | G46: 1000
A48: FY 2022 Forecast Revenue | B48: $FY22 | C48: 42.3546
A50: Reference tariff | B50: $FY22 | C50: 0.58019201
A52: Real Revenue from PTRM | B52: $FY22 | C52: 41.19114798 | D52: 40.48131687 | E52: 39.7348672 | F52: 39.35771792 | G52: 39.00005438

Sheet Calculations
A11: Roma Brisbane Pipeline
A12: Reference Tariff Model
A14: Item | B14: Dollars | C14: FY2023 | D14: FY2024 | E14: FY2025 | F14: FY2026 | G14: FY2027 | I14: NPV
A16: Building Block Revenue | B16: =Inputs!B19 -> Forecast Nom | C16: =Inputs!C19 -> 40.03600246 | D16: =Inputs!D19 -> 41.6200699 | E16: =Inputs!E19 -> 43.9774829 | F16: =Inputs!F19 -> 45.59722596 | G16: =Inputs!G19 -> 42.52228291 | I16: =(C16/Inputs!C$43+D16/Inputs!D$43+E16/Inputs!E$43+F16/Inputs!F$43+G16/Inputs!G$43) -> 189.1216471
A18: Total Volumes | B18: GJ MDQ/year | C18: 96305402.55 | D18: 95577026.97 | E18: 94726412.55 | F18: 94730427.55 | G18: 94769847.55
A19: Smoothed Revenue | C19: =C18*C20/1000000 -> 41.94163244 | D19: =D18*D20/1000000 -> 42.24169916 | E19: 42.48661539 | F19: 43.11850808 | G19: 43.77615297 | I19: =(C19/Inputs!C$43+D19/Inputs!D$43+E19/Inputs!E$43+F19/Inputs!F$43+G19/Inputs!G$43) -> 189.1216471
A20: Reference tariff | C20: =FY22RefTariff*(1-C21/100)*(1+FY22Inf) -> 0.4355065378 | D20: =C20*(1-D21/100)*(1+FY22Inf) -> 0.4419649836 | E20: =D20*(1-E21/100)*(1+FY22Inf) -> 0.4485192065 | F20: =E20*(1-F21/100)*(1+FY22Inf) -> 0.4551706267 | G20: =F20*(1-G21/100)*(1+FY22Inf) -> 0.4619206857
A21: "Vanilla" X factor | C21: 26.58914746 | D21: 0.75 | E21: =D21 -> 0.75 | F21: 0.75 | G21: 0.75 | I21: =I16-I19 -> 0
C23: =C16-C19 -> -1.905629973
A25: Eastbound
A26: EastBound Volumes | B26: GJ MDQ/year | C26: 54577537.97 | D26: 53734839.47 | E26: 52998547.97 | F26: 53002562.97 | G26: 53041982.97
A27: Eastbound Revenues | C27: =C20*C26/1000000 -> 23.7688746 | D27: =D20*D26/1000000 -> 23.74891745 | E27: =E20*E26/1000000 -> 23.77086668 | F27: =F20*F26/1000000 -> 24.1252098 | G27: =G20*G26/1000000 -> 24.50118914 | I27: =(C27/Inputs!C$43+D27/Inputs!D$43+E27/Inputs!E$43+F27/Inputs!F$43+G27/Inputs!G$43) -> 106.2159247
A29: Eastbound Prudent Discount
A30: Prudent Discount Firm Demand | B30: =B18 -> GJ MDQ/year | C30: Confidential
A31: Prudent Discount Volume Revenue | B31: =Inputs!B26 -> GJ
A33: Prudent Discount Firm Tariff | B33: =Inputs!B34 -> $/GJ MDQ/Day | C33: Confidential
A34: Prudent Discount Volume tariff | B34: =Inputs!B35 -> $/GJ
A36: Prudent Discount Revenue | B36: $m | C36: confidential | I36: Confidential
A38: Eastbound Prudent Discount
A39: Reference Revenue Eastbound | B39: =B36 -> $m | C39: Confidential | I39: Confidential
A40: Non Discount Demand | B40: =B30 -> GJ MDQ/year
A41: Eastbound smoothed reference service | B41: =B39 -> $m | I41: Confidential
A42: Eastbound reference tariff | C42: =FY22RefTariff*(1-C44/100)*(1+FY22Inf) -> 0.4418109774 | D42: =C42*(1-D44/100)*(1+FY22Inf) -> 0.4483629164 | E42: =D42*(1-E44/100)*(1+FY22Inf) -> 0.4550120188 | F42: =E42*(1-F44/100)*(1+FY22Inf) -> 0.4617597258 | G42: =F42*(1-G44/100)*(1+FY22Inf) -> 0.4686074994
C43: P0 | D43: X1 | E43: X2 | F43: X3 | G43: X4
A44: Eastbound X factor | C44: 25.52644404 | D44: 0.75 | E44: =D44 -> 0.75 | F44: 0.75 | G44: 0.75 | I44: 0
A46: Residual in year 1 | C46: -0.1751313915 | D46: -0.08151359291 | E46: 0.008557593704 | F46: 0.09701988975 | G46: 0.1865422921
A50: Westbound
A51: WestBound Volumes | B51: GJ MDQ/year | C51: =Inputs!C29*Inputs!C44*Inputs!C46 -> 41727864.58 | D51: =Inputs!D29*Inputs!D44*Inputs!D46 -> 41842187.5 | E51: =Inputs!E29*Inputs!E44*Inputs!E46 -> 41727864.58 | F51: =Inputs!F29*Inputs!F44*Inputs!F46 -> 41727864.58 | G51: =Inputs!G29*Inputs!G44*Inputs!G46 -> 41727864.58
A52: Westbound Revenues | C52: =C51*C20/1000000 -> 18.17275783 | D52: =D51*D20/1000000 -> 18.49278171 | E52: =E51*E20/1000000 -> 18.71574871 | F52: =F51*F20/1000000 -> 18.99329827 | G52: =G51*G20/1000000 -> 19.27496382 | I52: =(C52/Inputs!C$43+D52/Inputs!D$43+E52/Inputs!E$43+F52/Inputs!F$43+G52/Inputs!G$43) -> 82.90572242
A54: Westbound Prudent Discount
A55: =Inputs!A34 -> Prudent Discount | B55: =Inputs!B34 -> $/GJ MDQ/Day | C55: =Inputs!C33 -> 0 | D55: =Inputs!D33 -> 0 | E55: =Inputs!E33 -> 0 | F55: =Inputs!F33 -> 0 | G55: =Inputs!G33 -> 0
A56: Prudent Discount Firm Demand | B56: =B30 -> GJ MDQ/year | C56: =Inputs!C28*Inputs!C44*Inputs!C46 -> 0 | D56: =Inputs!D28*Inputs!D44*Inputs!D46 -> 0 | E56: =Inputs!E28*Inputs!E44*Inputs!E46 -> 0 | F56: =Inputs!F28*Inputs!F44*Inputs!F46 -> 0 | G56: =Inputs!G28*Inputs!G44*Inputs!G46 -> 0
A57: Prudent Discount Revenue | B57: $m | C57: =C55*C56/1000000 -> 0 | D57: =D55*D56/1000000 -> 0 | E57: 0 | F57: 0 | G57: 0 | I57: =(C57/Inputs!C$43+D57/Inputs!D$43+E57/Inputs!E$43+F57/Inputs!F$43+G57/Inputs!G$43) -> 0
A59: Westbound Reference Tariff
A60: Remaining Building Block Revenue | B60: =B57 -> $m | C60: =C52-C57 -> 18.17275783 | D60: =D52-D57 -> 18.49278171 | E60: 18.71574871 | F60: 18.99329827 | G60: 19.27496382 | I60: =(C60/Inputs!C$43+D60/Inputs!D$43+E60/Inputs!E$43+F60/Inputs!F$43+G60/Inputs!G$43) -> 82.90572242
A62: Non Discount Demand | B62: GJ MDQ/year | C62: =Inputs!C27*Inputs!C44*Inputs!C46 -> 41727864.58 | D62: =Inputs!D27*Inputs!D44*Inputs!D46 -> 41842187.5 | E62: =Inputs!E27*Inputs!E44*Inputs!E46 -> 41727864.58 | F62: =Inputs!F27*Inputs!F44*Inputs!F46 -> 41727864.58 | G62: =Inputs!G27*Inputs!G44*Inputs!G46 -> 41727864.58
A64: Westbound Revenue | B64: =B57 -> $m | C64: =(C62*C66)/1000000 -> 18.17275783 | D64: =(D62*D66)/1000000 -> 18.49278171 | E64: =(E62*E66)/1000000 -> 18.71574871 | F64: =(F62*F66)/1000000 -> 18.99329827 | G64: =(G62*G66)/1000000 -> 19.27496382 | I64: =(C64/Inputs!C$43+D64/Inputs!D$43+E64/Inputs!E$43+F64/Inputs!F$43+G64/Inputs!G$43) -> 82.90572242
A66: Westbound Reference Tariff | B66: $/GJ MDQ/Day | C66: =FY22RefTariff*(1-Calculations!C69/100)*(1+FY22Inf) -> 0.4355065378 | D66: =C66*(1-Calculations!D69/100)*(1+FY22Inf) -> 0.4419649836 | E66: =D66*(1-Calculations!E69/100)*(1+FY22Inf) -> 0.4485192065 | F66: =E66*(1-Calculations!F69/100)*(1+FY22Inf) -> 0.4551706267 | G66: =F66*(1-Calculations!G69/100)*(1+FY22Inf) -> 0.4619206857 | I66: =I60-I64 -> 0
C68: P0 | D68: X1 | E68: X2 | F68: X3 | G68: X4
A69: Westbound X factors | C69: 26.58914746 | D69: 0.75 | E69: 0.75 | F69: 0.75 | G69: 0.75
A71: Residual in year 1 | C71: =C52-C57-C64 -> 0 | D71: =D52-D57-D64 -> 0 | E71: 0 | F71: 0 | G71: 0
A74: Proof
A75: Smoothed | B75: =B64 -> $m | C75: 42.11788586 | D75: 42.32334329 | E75: 42.47758022 | F75: 43.02100775 | G75: 43.5891651 | I75: =(C75/Inputs!C$43+D75/Inputs!D$43+E75/Inputs!E$43+F75/Inputs!F$43+G75/Inputs!G$43) -> 189.1216471
A76: =A16 -> Building Block Revenue | B76: Forecast Nom | C76: 40.03600246 | D76: 41.6200699 | E76: 43.9774829 | F76: 45.59722596 | G76: 42.52228291 | I76: =(C76/Inputs!C$43+D76/Inputs!D$43+E76/Inputs!E$43+F76/Inputs!F$43+G76/Inputs!G$43) -> 189.1216471
I77: =I75-I76 -> 0

Sheet Outputs
B1: X Factors
B2: Reference Service | C2: =Calculations!C68 -> P0 | D2: =Calculations!D68 -> X1 | E2: =Calculations!E68 -> X2 | F2: =Calculations!F68 -> X3 | G2: =Calculations!G68 -> X4
B3: =Calculations!A44 -> Eastbound X factor | C3: =Calculations!C44 -> 25.52644404 | D3: =Calculations!D44 -> 0.75 | E3: =Calculations!E44 -> 0.75 | F3: =Calculations!F44 -> 0.75 | G3: =Calculations!G44 -> 0.75
B4: =Calculations!A69 -> Westbound X factors | C4: =Calculations!C69 -> 26.58914746 | D4: =Calculations!D69 -> 0.75 | E4: =Calculations!E69 -> 0.75 | F4: =Calculations!F69 -> 0.75 | G4: =Calculations!G69 -> 0.75
B6: Forecast Reference Tariff (Nominal)
B7: Service | C7: FY23 | D7: FY24 | E7: FY25 | F7: FY26 | G7: FY27
B8: Eastbound Long Term Firm Service | C8: =ROUND(Calculations!C42,4) -> 0.4418 | D8: =ROUND(Calculations!D42,4) -> 0.4484 | E8: =ROUND(Calculations!E42,4) -> 0.455 | F8: =ROUND(Calculations!F42,4) -> 0.4618 | G8: =ROUND(Calculations!G42,4) -> 0.4686
B9: Westbound Long Term Firm Service | C9: =ROUND(Calculations!C66,4) -> 0.4355 | D9: =ROUND(Calculations!D66,4) -> 0.442 | E9: =ROUND(Calculations!E66,4) -> 0.4485 | F9: =ROUND(Calculations!F66,4) -> 0.4552 | G9: =ROUND(Calculations!G66,4) -> 0.4619
B11: Forecast Reference Tariff (Real)
B12: Service | C12: FY23 | D12: FY24 | E12: FY25 | F12: FY26 | G12: FY27
B13: Eastbound Long Term Firm Service | C13: =ROUND(C8/Inputs!C$40,4) -> 0.4321 | D13: =ROUND(D8/Inputs!D$40,4) -> 0.4289 | E13: =ROUND(E8/Inputs!E$40,4) -> 0.4256 | F13: =ROUND(F8/Inputs!F$40,4) -> 0.4225 | G13: =ROUND(G8/Inputs!G$40,4) -> 0.4193
B14: Westbound Long Term Firm Service | C14: =ROUND(C9/Inputs!C$40,4) -> 0.4259 | D14: =ROUND(D9/Inputs!D$40,4) -> 0.4228 | E14: =ROUND(E9/Inputs!E$40,4) -> 0.4195 | F14: =ROUND(F9/Inputs!F$40,4) -> 0.4164 | G14: =ROUND(G9/Inputs!G$40,4) -> 0.4133
B17: Demand (Confidential) | J17: Demand (Public)
B19: Component (TJ MDW/Day) | C19: FY23 | D19: FY24 | E19: FY25 | F19: FY26 | G19: FY27 | J19: Component | K19: FY23 | L19: FY24 | M19: FY25 | N19: FY26 | O19: FY27
B20: Westbound | C20: Confidential | J20: =B20 -> Westbound | K20: =Inputs!C29 -> 114.3229167 | L20: =Inputs!D29 -> 114.3229167 | M20: =Inputs!E29 -> 114.3229167 | N20: =Inputs!F29 -> 114.3229167 | O20: =Inputs!G29 -> 114.3229167
B21: Competitive | J21: =B22 -> GPG | K21: =Inputs!C24 -> 17.92750128 | L21: =Inputs!D24 -> 17.81650128 | M21: =Inputs!E24 -> 17.70150128 | N21: =Inputs!F24 -> 17.71250128 | O21: =Inputs!G24 -> 17.82050128
B22: GPG | J22: =B24 -> Eastbound | K22: 131.6 | L22: 129 | M22: 127.5 | N22: 127.5 | O22: 127.5
B23: =Inputs!A25 -> Prudent Discount | J23: =B25 -> Total | K23: =SUM(K20:K22) -> 263.8504179 | L23: =SUM(L20:L22) -> 261.1394179 | M23: 259.5244179 | N23: 259.5354179 | O23: 259.6434179
B24: Eastbound
B25: Total | C25: 263.8504179 | D25: 261.1394179 | E25: 259.5244179 | F25: 259.5354179 | G25: 259.6434179
B28: Revenue | D28: FY23 | E28: FY24 | F28: FY25 | G28: FY26 | H28: FY27
B29: Eastbound Prudent Discount Revenue | C29: =Calculations!B36 -> $m | D29: Confidential
B30: =Calculations!A41 -> Eastbound smoothed reference service | C30: =Calculations!B41 -> $m
B31: Westbound Prudent Discount Revenue | C31: =Calculations!B57 -> $m
B32: =Calculations!A64 -> Westbound Revenue | C32: =Calculations!B64 -> $m
B33: Total "smoothed" Revenue | C33: $m | D33: 42.11632937 | E33: 42.32316221 | F33: 42.47824271 | G33: 43.02167422 | H33: 43.5897832
B35: Eastbound Reference Tariff | C35: $GJ MDQ | D35: =Calculations!C42 -> 0.4418109774 | E35: =Calculations!D42 -> 0.4483629164 | F35: =Calculations!E42 -> 0.4550120188 | G35: =Calculations!F42 -> 0.4617597258 | H35: =Calculations!G42 -> 0.4686074994
B36: GPG Volumes | C36: GJ MDQ PA | D36: =Inputs!C24*Inputs!C44*Inputs!C46 -> 6543537.968 | E36: =Inputs!D24*Inputs!D44*Inputs!D46 -> 6520839.469 | F36: =Inputs!E24*Inputs!E44*Inputs!E46 -> 6461047.968 | G36: =Inputs!F24*Inputs!F44*Inputs!F46 -> 6465062.968 | H36: =Inputs!G24*Inputs!G44*Inputs!G46 -> 6504482.968
B37: GPG Revenue | D37: =D35*D36/1000000 -> 2.891006905 | E37: =E35*E36/1000000 -> 2.923702602 | F37: =F35*F36/1000000 -> 2.93985448 | G37: =G35*G36/1000000 -> 2.985305703 | H37: =H35*H36/1000000 -> 3.048049498
B39: Other East bound Revenue | C39: $m | D39: 21.05256463 | E39: 20.90667789 | F39: 20.82263952 | G39: 21.04307024 | H39: 21.26676988
B41: Westbound Revenue | C41: $m | D41: 18.17275783 | E41: 18.49278171 | F41: 18.71574871 | G41: 18.99329827 | H41: 19.27496382
B43: Total Revenue | D43: =D37+D39+D41 -> 42.11632937 | E43: =E37+E39+E41 -> 42.32316221 | F43: =F37+F39+F41 -> 42.47824271 | G43: =G37+G39+G41 -> 43.02167422 | H43: =H37+H39+H41 -> 43.5897832
B46: Real Revenue ($FY22)
B48: Revenue | D48: =D28 -> FY23 | E48: =E28 -> FY24 | F48: FY25 | G48: FY26 | H48: FY27
B49: Revenue | D49: =Inputs!C52*1000000 -> 41191147.98 | E49: =Inputs!D52*1000000 -> 40481316.87 | F49: =Inputs!E52*1000000 -> 39734867.2 | G49: =Inputs!F52*1000000 -> 39357717.92 | H49: =Inputs!G52*1000000 -> 39000054.38
B51: RIN Total | D51: 41535152.48 | E51: 42145631.83 | F51: 42010595.99 | G51: 43847765.26 | H51: 47202597.74
D53: =D49-D51 -> -344004.4988 | E53: =E49-E51 -> -1664314.955 | F53: -2275728.792 | G53: -4490047.335 | H53: -8202543.366

Sheet Proof Prudent Discount
B2: Confidential
